[Event "Titled Tuesday Blitz June 14 Late 2022"]
[White "Korchmar, Vasiliy"]
[Black "Zherebtsova, Alexandra"]
[WhiteFideId "24131750"]
[BlackFideId "24129518"]
[WhiteElo "2370"]
[BlackElo "2025"]
[Result "1-0"]
[Round "02"]
[TimeControl "180+1"]
[Date "2022.06.15"]
[WhiteClock "0:00:07"]
[BlackClock "0:00:01"]

1. e4 {[%clk 0:03:00]}  e5 {[%clk 0:02:44]} 2. Nf3 {[%clk 0:02:59]}  Nc6 {[%clk 0:02:42]} 3. Nc3 {[%clk 0:03:00]}  Nf6 {[%clk 0:02:41]} 4. h3 {[%clk 0:03:00]}  g6 {[%clk 0:02:33]} 5. d4 {[%clk 0:02:59]}  exd4 {[%clk 0:02:33]} 6. Nxd4 {[%clk 0:03:00]}  Bg7 {[%clk 0:02:32]} 7. Nxc6 {[%clk 0:03:01]}  bxc6 {[%clk 0:02:31]} 8. Bc4 {[%clk 0:03:01]}  O-O {[%clk 0:02:20]} 9. O-O {[%clk 0:03:01]}  Re8 {[%clk 0:02:17]} 10. Bg5 {[%clk 0:02:57]}  h6 {[%clk 0:02:15]} 11. Bh4 {[%clk 0:02:57]}  Rb8 {[%clk 0:01:51]} 12. Bb3 {[%clk 0:02:56]}  Bb7 {[%clk 0:01:29]} 13. Re1 {[%clk 0:02:55]}  d6 {[%clk 0:01:26]} 14. f4 {[%clk 0:02:55]}  Qd7 {[%clk 0:01:18]} 15. Qd3 {[%clk 0:02:42]}  Nh5 {[%clk 0:01:13]} 16. Qf3 {[%clk 0:02:27]}  c5 {[%clk 0:00:49]} 17. f5 {[%clk 0:02:27]}  Bd4+ {[%clk 0:00:40]} 18. Kh1 {[%clk 0:02:26]}  Kh7 {[%clk 0:00:38]} 19. Ba4 {[%clk 0:02:14]}  Bc6 {[%clk 0:00:36]} 20. Bb3 {[%clk 0:01:58]}  Rf8 {[%clk 0:00:27]} 21. Rad1 {[%clk 0:01:56]}  Ng7 {[%clk 0:00:18]} 22. Bf2 {[%clk 0:01:32]}  Nxf5 {[%clk 0:00:14]} 23. Bd5 {[%clk 0:01:26]}  Bxf2 {[%clk 0:00:14]} 24. Qxf2 {[%clk 0:01:25]}  Nd4 {[%clk 0:00:14]} 25. e5 {[%clk 0:01:14]}  f5 {[%clk 0:00:12]} 26. exf6 {[%clk 0:01:10]}  Nf5 {[%clk 0:00:10]} 27. Be6 {[%clk 0:01:07]}  Qd8 {[%clk 0:00:09]} 28. Bxf5 {[%clk 0:01:08]}  Rxf6 {[%clk 0:00:09]} 29. Bxg6+ {[%clk 0:00:57]}  Rxg6 {[%clk 0:00:08]} 30. Qf7+ {[%clk 0:00:58]}  Rg7 {[%clk 0:00:08]} 31. Qf5+ {[%clk 0:00:58]}  Kh8 {[%clk 0:00:09]} 32. Re2 {[%clk 0:00:58]}  Qg5 {[%clk 0:00:09]} 33. Qf2 {[%clk 0:00:51]}  Rxb2 {[%clk 0:00:08]} 34. Ne4 {[%clk 0:00:45]}  Bxe4 {[%clk 0:00:08]} 35. Rxe4 {[%clk 0:00:46]}  Rb8 {[%clk 0:00:08]} 36. Rde1 {[%clk 0:00:38]}  Rbg8 {[%clk 0:00:07]} 37. Rg4 {[%clk 0:00:33]}  Qh5 {[%clk 0:00:07]} 38. Rh4 {[%clk 0:00:31]}  Qg5 {[%clk 0:00:07]} 39. Re6 {[%clk 0:00:28]}  Rg6 {[%clk 0:00:04]} 40. Rxg6 {[%clk 0:00:23]}  Rxg6 {[%clk 0:00:04]} 41. Rf4 {[%clk 0:00:14]}  Rg8 {[%clk 0:00:03]} 42. Rf7 {[%clk 0:00:13]}  Rg7 {[%clk 0:00:03]} 43. Rf8+ {[%clk 0:00:11]}  Kh7 {[%clk 0:00:04]} 44. Rf5 {[%clk 0:00:11]}  Qg6 {[%clk 0:00:04]} 45. Rf6 {[%clk 0:00:11]}  Qg5 {[%clk 0:00:03]} 46. a4 {[%clk 0:00:12]}  a5 {[%clk 0:00:01]} 47. c3 {[%clk 0:00:11]}  Qe5 {[%clk 0:00:02]} 48. Qh4 {[%clk 0:00:10]}  Qg5 {[%clk 0:00:02]} 49. Qe4+ {[%clk 0:00:10]}  Kh8 {[%clk 0:00:01]} 50. Qf3 {[%clk 0:00:07]} 1-0


[Site "https://www.chess.com"]

[Event "Titled Tuesday Blitz June 14 Late 2022"]
[White "Leiva, Gianmarco"]
[Black "Dubov, Daniil"]
[WhiteFideId "3804399"]
[BlackFideId "24126055"]
[WhiteElo "2323"]
[BlackElo "2791"]
[Result "0-1"]
[Round "02"]
[TimeControl "180+1"]
[Date "2022.06.14"]
[WhiteClock "0:00:24"]
[BlackClock "0:00:33"]

1. e4 {[%clk 0:03:00]}  e5 {[%clk 0:02:59]} 2. Nf3 {[%clk 0:03:01]}  Nc6 {[%clk 0:02:59]} 3. Bc4 {[%clk 0:03:01]}  Nf6 {[%clk 0:02:59]} 4. d3 {[%clk 0:03:01]}  Be7 {[%clk 0:02:59]} 5. O-O {[%clk 0:03:01]}  O-O {[%clk 0:02:59]} 6. a4 {[%clk 0:03:01]}  d6 {[%clk 0:02:58]} 7. a5 {[%clk 0:03:00]}  a6 {[%clk 0:02:58]} 8. h3 {[%clk 0:02:49]}  Be6 {[%clk 0:02:57]} 9. Nbd2 {[%clk 0:02:47]}  Bxc4 {[%clk 0:02:56]} 10. Nxc4 {[%clk 0:02:48]}  h6 {[%clk 0:02:55]} 11. c3 {[%clk 0:02:44]}  Re8 {[%clk 0:02:54]} 12. Qb3 {[%clk 0:02:40]}  Rb8 {[%clk 0:02:52]} 13. Be3 {[%clk 0:02:38]}  Bf8 {[%clk 0:02:52]} 14. Rfe1 {[%clk 0:02:27]}  d5 {[%clk 0:02:51]} 15. exd5 {[%clk 0:02:27]}  Qxd5 {[%clk 0:02:49]} 16. d4 {[%clk 0:02:21]}  e4 {[%clk 0:02:41]} 17. Nfd2 {[%clk 0:02:21]}  Qf5 {[%clk 0:02:41]} 18. Nf1 {[%clk 0:02:13]}  Nd5 {[%clk 0:02:34]} 19. Ng3 {[%clk 0:02:10]}  Qg6 {[%clk 0:02:33]} 20. Nd2 {[%clk 0:01:59]}  Rbd8 {[%clk 0:02:16]} 21. Ndxe4 {[%clk 0:01:47]}  f5 {[%clk 0:01:51]} 22. Nc5 {[%clk 0:01:39]}  Bxc5 {[%clk 0:01:49]} 23. dxc5 {[%clk 0:01:39]}  Kh7 {[%clk 0:01:48]} 24. Ne2 {[%clk 0:01:18]}  Nxe3 {[%clk 0:01:30]} 25. Nf4 {[%clk 0:01:17]}  Qg5 {[%clk 0:01:13]} 26. fxe3 {[%clk 0:01:11]}  Ne5 {[%clk 0:01:09]} 27. Red1 {[%clk 0:01:03]}  Qg3 {[%clk 0:01:04]} 28. Kh1 {[%clk 0:00:45]}  Qxe3 {[%clk 0:00:57]} 29. Ne6 {[%clk 0:00:43]}  Rxd1+ {[%clk 0:00:54]} 30. Rxd1 {[%clk 0:00:44]}  Nd3 {[%clk 0:00:52]} 31. Kh2 {[%clk 0:00:32]}  Nf2 {[%clk 0:00:42]} 32. Rf1 {[%clk 0:00:33]}  Qe5+ {[%clk 0:00:34]} 33. Kg1 {[%clk 0:00:24]}  Nxh3+ {[%clk 0:00:33]} 34. gxh3 {[%clk 0:00:25]}  Qg3+ {[%clk 0:00:33]} 35. Kh1 {[%clk 0:00:25]}  Qxh3+ {[%clk 0:00:33]} 36. Kg1 {[%clk 0:00:25]}  Qg3+ {[%clk 0:00:34]} 37. Kh1 {[%clk 0:00:26]}  Qh3+ {[%clk 0:00:34]} 38. Kg1 {[%clk 0:00:26]}  Qe3+ {[%clk 0:00:35]} 39. Rf2 {[%clk 0:00:24]}  Rxe6 {[%clk 0:00:34]} 40. Qxb7 {[%clk 0:00:23]}  Qe1+ {[%clk 0:00:32]} 41. Kg2 {[%clk 0:00:24]}  Rg6+ {[%clk 0:00:32]} 42. Kf3 {[%clk 0:00:24]}  Qh1+ {[%clk 0:00:33]} 43. Ke2 {[%clk 0:00:24]}  Qxb7 {[%clk 0:00:33]} 0-1


[Site "https://www.chess.com"]

[Event "Titled Tuesday Blitz June 14 Late 2022"]
[White "Luo, Terry"]
[Black "Meshkovs, Nikita"]
[WhiteFideId "30931045"]
[BlackFideId "11602740"]
[WhiteElo "2024"]
[BlackElo "2506"]
[Result "0-1"]
[Round "02"]
[TimeControl "180+1"]
[Date "2022.06.14"]
[WhiteClock "0:00:36"]
[BlackClock "0:00:10"]

1. d4 {[%clk 0:03:00]}  Nf6 {[%clk 0:02:59]} 2. c4 {[%clk 0:03:00]}  c5 {[%clk 0:03:00]} 3. d5 {[%clk 0:03:00]}  e6 {[%clk 0:03:00]} 4. Nc3 {[%clk 0:02:58]}  exd5 {[%clk 0:03:01]} 5. cxd5 {[%clk 0:02:58]}  g6 {[%clk 0:03:01]} 6. g3 {[%clk 0:02:58]}  d6 {[%clk 0:03:02]} 7. Bg2 {[%clk 0:02:59]}  Bg7 {[%clk 0:03:02]} 8. Nf3 {[%clk 0:02:59]}  O-O {[%clk 0:03:03]} 9. O-O {[%clk 0:03:00]}  Bf5 {[%clk 0:02:51]} 10. Bf4 {[%clk 0:02:58]}  Nh5 {[%clk 0:02:49]} 11. Bg5 {[%clk 0:02:58]}  Qb6 {[%clk 0:02:47]} 12. Qd2 {[%clk 0:02:50]}  Nf6 {[%clk 0:02:42]} 13. Nh4 {[%clk 0:02:46]}  Bc8 {[%clk 0:02:38]} 14. a4 {[%clk 0:02:40]}  a5 {[%clk 0:02:22]} 15. Nb5 {[%clk 0:02:09]}  Bd7 {[%clk 0:02:13]} 16. Ra3 {[%clk 0:02:00]}  Na6 {[%clk 0:01:57]} 17. Qf4 {[%clk 0:01:57]}  Bxb5 {[%clk 0:01:46]} 18. axb5 {[%clk 0:01:56]}  Nh5 {[%clk 0:01:46]} 19. Qf3 {[%clk 0:01:46]}  Nb4 {[%clk 0:01:17]} 20. g4 {[%clk 0:01:46]}  Nc2 {[%clk 0:01:18]} 21. Rd3 {[%clk 0:01:42]}  Nd4 {[%clk 0:01:08]} 22. Rxd4 {[%clk 0:01:42]}  cxd4 {[%clk 0:01:04]} 23. gxh5 {[%clk 0:01:41]}  d3 {[%clk 0:00:40]} 24. h6 {[%clk 0:01:29]}  Bxb2 {[%clk 0:00:37]} 25. Bf6 {[%clk 0:01:27]}  Be5 {[%clk 0:00:37]} 26. exd3 {[%clk 0:01:11]}  Qd4 {[%clk 0:00:35]} 27. Bxe5 {[%clk 0:01:05]}  Qxe5 {[%clk 0:00:36]} 28. Qe4 {[%clk 0:00:54]}  Qxe4 {[%clk 0:00:20]} 29. Bxe4 {[%clk 0:00:50]}  a4 {[%clk 0:00:20]} 30. Nf3 {[%clk 0:00:48]}  a3 {[%clk 0:00:20]} 31. Ra1 {[%clk 0:00:48]}  f5 {[%clk 0:00:19]} 32. Nd4 {[%clk 0:00:47]}  fxe4 {[%clk 0:00:20]} 33. dxe4 {[%clk 0:00:48]}  Rfc8 {[%clk 0:00:17]} 34. Kf1 {[%clk 0:00:48]}  Rc4 {[%clk 0:00:16]} 35. Nb3 {[%clk 0:00:49]}  Rb4 {[%clk 0:00:16]} 36. Nd2 {[%clk 0:00:48]}  Rxb5 {[%clk 0:00:16]} 37. Ke2 {[%clk 0:00:49]}  a2 {[%clk 0:00:16]} 38. Kd3 {[%clk 0:00:49]}  Ra3+ {[%clk 0:00:13]} 39. Kc2 {[%clk 0:00:49]}  Rb4 {[%clk 0:00:13]} 40. f3 {[%clk 0:00:47]}  g5 {[%clk 0:00:13]} 41. Nf1 {[%clk 0:00:39]}  Kf7 {[%clk 0:00:10]} 42. Ng3 {[%clk 0:00:39]}  Kf6 {[%clk 0:00:10]} 43. Ne2 {[%clk 0:00:38]}  Ke5 {[%clk 0:00:09]} 44. Nc3 {[%clk 0:00:39]}  Rc4 {[%clk 0:00:09]} 45. Kb2 {[%clk 0:00:37]}  Rcxc3 {[%clk 0:00:09]} 46. Rxa2 {[%clk 0:00:36]}  Rab3+ {[%clk 0:00:09]} 47. Ka1 {[%clk 0:00:36]}  Rc1# {[%clk 0:00:10]} 0-1


[Site "https://www.chess.com"]

[Event "Titled Tuesday Blitz June 14 Late 2022"]
[White "Mammadova, Gulnar"]
[Black "Oparin, Grigoriy"]
[WhiteFideId "13403508"]
[BlackFideId "24125890"]
[WhiteElo "2255"]
[BlackElo "2639"]
[Result "0-1"]
[Round "02"]
[TimeControl "180+1"]
[Date "2022.06.14"]
[WhiteClock "0:00:17"]
[BlackClock "0:00:26"]

1. e4 {[%clk 0:03:00]}  c6 {[%clk 0:02:59]} 2. d4 {[%clk 0:02:59]}  d5 {[%clk 0:03:00]} 3. f3 {[%clk 0:02:59]}  Qb6 {[%clk 0:02:58]} 4. Nc3 {[%clk 0:02:51]}  e6 {[%clk 0:02:58]} 5. a3 {[%clk 0:02:46]}  Nf6 {[%clk 0:02:58]} 6. e5 {[%clk 0:02:37]}  Nfd7 {[%clk 0:02:57]} 7. f4 {[%clk 0:02:38]}  c5 {[%clk 0:02:58]} 8. Nf3 {[%clk 0:02:38]}  Nc6 {[%clk 0:02:57]} 9. Ne2 {[%clk 0:02:26]}  cxd4 {[%clk 0:02:46]} 10. Nexd4 {[%clk 0:02:26]}  Nxd4 {[%clk 0:02:45]} 11. Nxd4 {[%clk 0:02:25]}  Bc5 {[%clk 0:02:46]} 12. c3 {[%clk 0:02:25]}  Nb8 {[%clk 0:02:44]} 13. Bb5+ {[%clk 0:02:22]}  Bd7 {[%clk 0:02:44]} 14. Bxd7+ {[%clk 0:02:18]}  Kxd7 {[%clk 0:02:45]} 15. O-O {[%clk 0:02:14]}  Bxd4+ {[%clk 0:02:40]} 16. cxd4 {[%clk 0:02:08]}  Nc6 {[%clk 0:02:41]} 17. Be3 {[%clk 0:02:08]}  g6 {[%clk 0:02:39]} 18. Qd2 {[%clk 0:02:04]}  Rac8 {[%clk 0:02:38]} 19. Rac1 {[%clk 0:01:59]}  Ne7 {[%clk 0:02:38]} 20. Bf2 {[%clk 0:01:56]}  Rxc1 {[%clk 0:02:39]} 21. Rxc1 {[%clk 0:01:53]}  Rc8 {[%clk 0:02:40]} 22. Rxc8 {[%clk 0:01:53]}  Kxc8 {[%clk 0:02:41]} 23. b4 {[%clk 0:01:53]}  Qb5 {[%clk 0:02:35]} 24. h3 {[%clk 0:01:51]}  Kd7 {[%clk 0:02:33]} 25. Qc3 {[%clk 0:01:47]}  Qc4 {[%clk 0:02:34]} 26. Qd2 {[%clk 0:01:40]}  Kc6 {[%clk 0:02:26]} 27. a4 {[%clk 0:01:40]}  a6 {[%clk 0:02:25]} 28. Kh2 {[%clk 0:01:38]}  Kd7 {[%clk 0:02:26]} 29. Qb2 {[%clk 0:01:34]}  h5 {[%clk 0:02:23]} 30. Qa3 {[%clk 0:01:29]}  b5 {[%clk 0:02:13]} 31. axb5 {[%clk 0:01:29]}  Qxb5 {[%clk 0:02:14]} 32. Qc3 {[%clk 0:01:27]}  Nc6 {[%clk 0:02:13]} 33. Qf3 {[%clk 0:01:23]}  Qxb4 {[%clk 0:02:11]} 34. f5 {[%clk 0:01:24]}  Qe7 {[%clk 0:01:31]} 35. fxe6+ {[%clk 0:01:17]}  Qxe6 {[%clk 0:01:30]} 36. Qa3 {[%clk 0:01:14]}  Nd8 {[%clk 0:01:26]} 37. Bh4 {[%clk 0:01:09]}  Nb7 {[%clk 0:01:22]} 38. Qa4+ {[%clk 0:01:06]}  Qc6 {[%clk 0:01:20]} 39. Qb4 {[%clk 0:01:06]}  Kc7 {[%clk 0:01:16]} 40. Qf8 {[%clk 0:00:59]}  Qd7 {[%clk 0:01:12]} 41. Qa8 {[%clk 0:00:58]}  Kb6 {[%clk 0:01:11]} 42. Qf8 {[%clk 0:00:55]}  a5 {[%clk 0:01:11]} 43. Be1 {[%clk 0:00:54]}  Kb5 {[%clk 0:01:08]} 44. Qa3 {[%clk 0:00:48]}  Ka6 {[%clk 0:01:08]} 45. Qd3+ {[%clk 0:00:45]}  Qb5 {[%clk 0:01:08]} 46. Qa3 {[%clk 0:00:45]}  Qf1 {[%clk 0:01:01]} 47. Bc3 {[%clk 0:00:39]}  g5 {[%clk 0:00:52]} 48. Bd2 {[%clk 0:00:39]}  g4 {[%clk 0:00:49]} 49. hxg4 {[%clk 0:00:37]}  hxg4 {[%clk 0:00:50]} 50. Qg3 {[%clk 0:00:36]}  Qe2 {[%clk 0:00:47]} 51. Qc3 {[%clk 0:00:32]}  Qc4 {[%clk 0:00:44]} 52. Qe3 {[%clk 0:00:31]}  a4 {[%clk 0:00:44]} 53. Qh6+ {[%clk 0:00:31]}  Kb5 {[%clk 0:00:44]} 54. Qf8 {[%clk 0:00:28]}  Qxd4 {[%clk 0:00:38]} 55. Qxf7 {[%clk 0:00:29]}  Qxe5+ {[%clk 0:00:38]} 56. Bf4 {[%clk 0:00:29]}  Qh8+ {[%clk 0:00:33]} 57. Kg3 {[%clk 0:00:29]}  Qc3+ {[%clk 0:00:33]} 58. Kxg4 {[%clk 0:00:29]}  Qc6 {[%clk 0:00:31]} 59. Qf8 {[%clk 0:00:26]}  Na5 {[%clk 0:00:29]} 60. Qb8+ {[%clk 0:00:26]}  Kc4 {[%clk 0:00:28]} 61. Qe5 {[%clk 0:00:26]}  Nb3 {[%clk 0:00:27]} 62. Qe2+ {[%clk 0:00:26]}  Kb4 {[%clk 0:00:26]} 63. Bd2+ {[%clk 0:00:25]}  Nxd2 {[%clk 0:00:26]} 64. Qxd2+ {[%clk 0:00:26]}  Qc3 {[%clk 0:00:24]} 65. Qg5 {[%clk 0:00:18]}  a3 {[%clk 0:00:25]} 66. Qe7+ {[%clk 0:00:17]}  Kb3 {[%clk 0:00:25]} 67. Qb7+ {[%clk 0:00:17]}  Qb4+ {[%clk 0:00:26]} 0-1


[Site "https://www.chess.com"]

[Event "Titled Tuesday Blitz June 14 Late 2022"]
[White "McCoy, Owen"]
[Black "Lagno, Kateryna"]
[WhiteFideId "30924502"]
[BlackFideId "14109336"]
[WhiteElo "2437"]
[BlackElo "2522"]
[Result "1-0"]
[Round "02"]
[TimeControl "180+1"]
[Date "2022.06.15"]
[WhiteClock "0:00:25"]
[BlackClock "0:00:43"]

1. d4 {[%clk 0:03:00]}  Nf6 {[%clk 0:02:59]} 2. g3 {[%clk 0:02:59]}  g6 {[%clk 0:02:59]} 3. Bg2 {[%clk 0:02:59]}  d5 {[%clk 0:02:58]} 4. c4 {[%clk 0:02:58]}  c6 {[%clk 0:02:52]} 5. Nf3 {[%clk 0:02:57]}  Bg7 {[%clk 0:02:52]} 6. O-O {[%clk 0:02:57]}  O-O {[%clk 0:02:53]} 7. cxd5 {[%clk 0:02:53]}  cxd5 {[%clk 0:02:54]} 8. Ne5 {[%clk 0:02:53]}  Nfd7 {[%clk 0:02:47]} 9. f4 {[%clk 0:02:27]}  Nb6 {[%clk 0:02:35]} 10. e3 {[%clk 0:01:40]}  f6 {[%clk 0:02:32]} 11. Nd3 {[%clk 0:01:40]}  Nc6 {[%clk 0:02:32]} 12. Nc3 {[%clk 0:01:39]}  e6 {[%clk 0:02:10]} 13. b3 {[%clk 0:01:36]}  Re8 {[%clk 0:01:58]} 14. Ba3 {[%clk 0:00:58]}  a5 {[%clk 0:01:43]} 15. Nb5 {[%clk 0:00:55]}  a4 {[%clk 0:01:31]} 16. Bc5 {[%clk 0:00:51]}  Bf8 {[%clk 0:01:11]} 17. Bxf8 {[%clk 0:00:46]}  Rxf8 {[%clk 0:01:11]} 18. Nc5 {[%clk 0:00:47]}  axb3 {[%clk 0:01:06]} 19. axb3 {[%clk 0:00:47]}  Rxa1 {[%clk 0:01:06]} 20. Qxa1 {[%clk 0:00:48]}  Nd7 {[%clk 0:01:06]} 21. Nxe6 {[%clk 0:00:48]}  Qb6 {[%clk 0:01:06]} 22. Nxf8 {[%clk 0:00:46]}  Kxf8 {[%clk 0:01:05]} 23. Nd6 {[%clk 0:00:45]}  Qc7 {[%clk 0:01:04]} 24. Nxc8 {[%clk 0:00:44]}  Qxc8 {[%clk 0:01:05]} 25. Bxd5 {[%clk 0:00:45]}  Nb6 {[%clk 0:01:06]} 26. Bf3 {[%clk 0:00:44]}  Qe6 {[%clk 0:01:04]} 27. Qc3 {[%clk 0:00:41]}  Kg7 {[%clk 0:01:03]} 28. e4 {[%clk 0:00:41]}  Qd6 {[%clk 0:01:02]} 29. d5 {[%clk 0:00:41]}  Ne7 {[%clk 0:00:59]} 30. Rc1 {[%clk 0:00:39]}  Nbc8 {[%clk 0:00:52]} 31. e5 {[%clk 0:00:38]}  Qb6+ {[%clk 0:00:49]} 32. Kg2 {[%clk 0:00:36]}  Nf5 {[%clk 0:00:47]} 33. exf6+ {[%clk 0:00:33]}  Kh6 {[%clk 0:00:46]} 34. Qxc8 {[%clk 0:00:31]}  Ne3+ {[%clk 0:00:45]} 35. Kh1 {[%clk 0:00:30]}  Qxf6 {[%clk 0:00:44]} 36. Qc3 {[%clk 0:00:28]}  Qb6 {[%clk 0:00:43]} 37. Qc5 {[%clk 0:00:26]}  Qxb3 {[%clk 0:00:43]} 38. Qf8# {[%clk 0:00:25]} 1-0


[Site "https://www.chess.com"]

[Event "Titled Tuesday Blitz June 14 Late 2022"]
[White "Mikhailov, Viacheslav"]
[Black "Castellanos Hernandez, Emilio Au"]
[WhiteFideId "4187369"]
[BlackFideId "5114179"]
[WhiteElo "2381"]
[BlackElo "2021"]
[Result "1/2-1/2"]
[Round "02"]
[TimeControl "180+1"]
[Date "2022.06.15"]
[WhiteClock "0:00:07"]
[BlackClock "0:00:32"]

1. Nf3 {[%clk 0:03:00]}  d5 {[%clk 0:02:59]} 2. g3 {[%clk 0:03:00]}  Nf6 {[%clk 0:02:57]} 3. Bg2 {[%clk 0:03:00]}  e6 {[%clk 0:02:58]} 4. O-O {[%clk 0:03:01]}  b6 {[%clk 0:02:56]} 5. d4 {[%clk 0:03:01]}  Bb7 {[%clk 0:02:57]} 6. c4 {[%clk 0:03:02]}  dxc4 {[%clk 0:02:56]} 7. Na3 {[%clk 0:03:00]}  Bxa3 {[%clk 0:02:55]} 8. Qa4+ {[%clk 0:03:01]}  Nbd7 {[%clk 0:02:52]} 9. Qxa3 {[%clk 0:03:00]}  Qe7 {[%clk 0:02:51]} 10. Qxe7+ {[%clk 0:03:00]}  Kxe7 {[%clk 0:02:51]} 11. Bd2 {[%clk 0:02:55]}  a5 {[%clk 0:02:43]} 12. Rfc1 {[%clk 0:02:54]}  Bd5 {[%clk 0:02:43]} 13. Bf4 {[%clk 0:02:48]}  c5 {[%clk 0:02:40]} 14. dxc5 {[%clk 0:02:42]}  Nxc5 {[%clk 0:02:41]} 15. Ne5 {[%clk 0:02:38]}  Bxg2 {[%clk 0:02:24]} 16. Kxg2 {[%clk 0:02:39]}  b5 {[%clk 0:02:15]} 17. Be3 {[%clk 0:02:37]}  Ncd7 {[%clk 0:02:12]} 18. Nc6+ {[%clk 0:02:30]}  Kd6 {[%clk 0:02:12]} 19. Nd4 {[%clk 0:02:31]}  Rab8 {[%clk 0:02:10]} 20. a4 {[%clk 0:02:25]}  bxa4 {[%clk 0:02:05]} 21. Rxc4 {[%clk 0:02:24]}  Nd5 {[%clk 0:02:03]} 22. Raxa4 {[%clk 0:01:59]}  Nxe3+ {[%clk 0:01:55]} 23. fxe3 {[%clk 0:01:59]}  Ne5 {[%clk 0:01:35]} 24. Rc2 {[%clk 0:01:53]}  Ra8 {[%clk 0:01:23]} 25. Nb5+ {[%clk 0:01:51]}  Ke7 {[%clk 0:01:21]} 26. Rc7+ {[%clk 0:01:51]}  Kf6 {[%clk 0:01:21]} 27. Nd6 {[%clk 0:01:44]}  Kg6 {[%clk 0:01:19]} 28. Re4 {[%clk 0:01:01]}  f6 {[%clk 0:01:17]} 29. Nc4 {[%clk 0:00:55]}  Nxc4 {[%clk 0:01:13]} 30. Rg4+ {[%clk 0:00:55]}  Kh6 {[%clk 0:01:13]} 31. Rgxc4 {[%clk 0:00:54]}  f5 {[%clk 0:01:07]} 32. h4 {[%clk 0:00:48]}  Kg6 {[%clk 0:01:03]} 33. R4c6 {[%clk 0:00:43]}  Kf6 {[%clk 0:01:00]} 34. Kf3 {[%clk 0:00:40]}  Rhb8 {[%clk 0:00:52]} 35. Rc2 {[%clk 0:00:40]}  h6 {[%clk 0:00:47]} 36. Rd7 {[%clk 0:00:40]}  Rc8 {[%clk 0:00:44]} 37. Rcd2 {[%clk 0:00:38]}  a4 {[%clk 0:00:41]} 38. h5 {[%clk 0:00:37]}  g6 {[%clk 0:00:40]} 39. Rh7 {[%clk 0:00:31]}  Kg5 {[%clk 0:00:36]} 40. hxg6 {[%clk 0:00:24]}  Kxg6 {[%clk 0:00:37]} 41. Rdd7 {[%clk 0:00:24]}  Rg8 {[%clk 0:00:37]} 42. Rb7 {[%clk 0:00:19]}  Rab8 {[%clk 0:00:37]} 43. Rxb8 {[%clk 0:00:10]}  Rxb8 {[%clk 0:00:37]} 44. Ra7 {[%clk 0:00:11]}  Rxb2 {[%clk 0:00:37]} 45. Rxa4 {[%clk 0:00:11]}  Kf6 {[%clk 0:00:34]} 46. e4 {[%clk 0:00:10]}  Rb3+ {[%clk 0:00:34]} 47. e3 {[%clk 0:00:10]}  Rb1 {[%clk 0:00:33]} 48. exf5 {[%clk 0:00:10]}  exf5 {[%clk 0:00:34]} 49. Ra8 {[%clk 0:00:07]}  Rf1+ {[%clk 0:00:33]} 50. Kg2 {[%clk 0:00:07]}  Re1 {[%clk 0:00:33]} 51. Kf2 {[%clk 0:00:08]}  Rb1 {[%clk 0:00:33]} 52. Ra6+ {[%clk 0:00:06]}  Kg5 {[%clk 0:00:33]} 53. Kg2 {[%clk 0:00:07]}  Rb2+ {[%clk 0:00:33]} 54. Kf3 {[%clk 0:00:07]}  Rb3 {[%clk 0:00:33]} 55. Ra8 {[%clk 0:00:08]}  Rb4 {[%clk 0:00:34]} 56. Rg8+ {[%clk 0:00:08]}  Kf6 {[%clk 0:00:34]} 57. Rh8 {[%clk 0:00:08]}  Kg7 {[%clk 0:00:35]} 58. Rd8 {[%clk 0:00:08]}  Re4 {[%clk 0:00:35]} 59. Rd6 {[%clk 0:00:08]}  Rg4 {[%clk 0:00:33]} 60. Rd5 {[%clk 0:00:08]}  Kg6 {[%clk 0:00:33]} 61. Rd6+ {[%clk 0:00:08]}  Kg7 {[%clk 0:00:33]} 62. Rd8 {[%clk 0:00:08]}  Re4 {[%clk 0:00:33]} 63. Rb8 {[%clk 0:00:07]}  Kg6 {[%clk 0:00:32]} 1/2-1/2


[Site "https://www.chess.com"]

[Event "Titled Tuesday Blitz June 14 Late 2022"]
[White "Milosevic, Milos"]
[Black "Zakhartsov, Vladimir"]
[WhiteFideId "964875"]
[BlackFideId "4145097"]
[WhiteElo "2313"]
[BlackElo "2490"]
[Result "0-1"]
[Round "02"]
[TimeControl "180+1"]
[Date "2022.06.14"]
[WhiteClock "0:00:13"]
[BlackClock "0:00:22"]

1. e4 {[%clk 0:03:00]}  c6 {[%clk 0:02:58]} 2. Nc3 {[%clk 0:02:58]}  d5 {[%clk 0:02:57]} 3. Nf3 {[%clk 0:02:58]}  dxe4 {[%clk 0:02:54]} 4. Nxe4 {[%clk 0:02:59]}  Nf6 {[%clk 0:02:54]} 5. Nxf6+ {[%clk 0:02:58]}  exf6 {[%clk 0:02:55]} 6. d4 {[%clk 0:02:56]}  Bd6 {[%clk 0:02:48]} 7. c3 {[%clk 0:02:55]}  O-O {[%clk 0:02:43]} 8. Be2 {[%clk 0:02:55]}  Re8 {[%clk 0:02:42]} 9. Be3 {[%clk 0:02:56]}  Nd7 {[%clk 0:02:42]} 10. Qd2 {[%clk 0:02:55]}  Nf8 {[%clk 0:02:42]} 11. O-O {[%clk 0:02:42]}  Bg4 {[%clk 0:02:39]} 12. Ne1 {[%clk 0:02:38]}  Be6 {[%clk 0:02:26]} 13. Nd3 {[%clk 0:02:36]}  Ng6 {[%clk 0:02:25]} 14. g3 {[%clk 0:01:43]}  Bd5 {[%clk 0:02:16]} 15. Rfe1 {[%clk 0:01:42]}  Qe7 {[%clk 0:02:13]} 16. Nf4 {[%clk 0:01:40]}  Nxf4 {[%clk 0:01:47]} 17. Bxf4 {[%clk 0:01:40]}  Qe4 {[%clk 0:01:46]} 18. f3 {[%clk 0:01:39]}  Bxf4 {[%clk 0:01:45]} 19. Qxf4 {[%clk 0:01:30]}  Qc2 {[%clk 0:01:38]} 20. Bf1 {[%clk 0:01:13]}  Qxb2 {[%clk 0:01:34]} 21. c4 {[%clk 0:01:09]}  Rxe1 {[%clk 0:01:18]} 22. Rxe1 {[%clk 0:01:10]}  Be6 {[%clk 0:01:18]} 23. Rd1 {[%clk 0:00:47]}  Qb6 {[%clk 0:01:04]} 24. Kh1 {[%clk 0:00:37]}  Rd8 {[%clk 0:00:59]} 25. c5 {[%clk 0:00:24]}  Qa5 {[%clk 0:00:57]} 26. Rb1 {[%clk 0:00:18]}  h5 {[%clk 0:00:22]} 27. Rxb7 {[%clk 0:00:16]}  Qe1 {[%clk 0:00:22]} 28. Kg2 {[%clk 0:00:14]}  Bh3+ {[%clk 0:00:21]} 29. Kxh3 {[%clk 0:00:13]}  Qxf1+ {[%clk 0:00:22]} 30. Kh4 {[%clk 0:00:12]}  g5+ {[%clk 0:00:22]} 31. Kxh5 {[%clk 0:00:13]}  gxf4 {[%clk 0:00:22]} 0-1


[Site "https://www.chess.com"]